fUSD/lending_fUSD_20241201
["ID","MTS","AMOUNT","RATE_DAILY","PERIOD"]
[343898324,1733011250651,23900.0,7.302e-05,2]
[343898326,1733011320820,155.62,7.285e-05,2]
[343898327,1733011411711,500.0,7.226e-05,2]
[343898328,1733011412277,500.0,7.227e-05,2]
[343898329,1733011480830,3123.89,7.32e-05,2]
[343898330,1733011516531,1046.32,7.32e-05,2]
[343898339,1733011832007,-150.0,7.83e-05,2]
[343898340,1733011832017,-334.68556046,7.83e-05,2]
[343898341,1733011832026,-97.31443504,7.83e-05,2]
[343898342,1733011832042,-202.68556496,7.83e-05,2]
[343898343,1733011832051,-4997.85536005,7.831e-05,2]
[343898344,1733011832062,-793.35,7.831e-05,2]
[343898345,1733011832095,-66566.79463995,7.831e-05,2]
[343898346,1733011832105,-257.3182453,7.84e-05,2]
[343898347,1733011832114,-159.4293,7.9e-05,2]
[343898348,1733011832124,-1468.40034723,7.919e-05,2]
[343898349,1733011832135,-271.43265277,7.919e-05,2]
[343898350,1733011832144,-192.604,7.919e-05,2]
[343898351,1733011832154,-1264.0,7.93e-05,2]
[343898352,1733011832163,-3758.0,7.93e-05,2]
[343898353,1733011832174,-816.0,7.93e-05,2]
[343898354,1733011832184,-540.634,7.93e-05,2]
[343898355,1733011832193,-534.0,7.93e-05,2]
[343898356,1733011832202,-150.0,7.932e-05,2]
[343898357,1733011832211,-730.6,7.932e-05,2]
[343898358,1733011832220,-500.0,7.973e-05,2]
[343898359,1733011832229,-500.0,7.973e-05,2]
[343898360,1733011832238,-150.0,7.98e-05,2]
[343898361,1733011832248,-301.31,7.98e-05,2]
[343898362,1733011832258,-150.0,7.98e-05,2]
[343898363,1733011832267,-222.63,7.98e-05,2]
[343898364,1733011832276,-867.37278099,7.98e-05,2]
[343898365,1733011832287,-48.35721901,7.98e-05,2]
[343898366,1733011832296,-516.24542199,7.98e-05,2]
[343898367,1733011832330,-249.72457801,7.98e-05,2]
[343898368,1733011832341,-300.44,7.98e-05,2]
[343898369,1733011832350,-78.28542199,7.98e-05,2]
[343898370,1733011832452,-1784.75457801,7.98e-05,2]
[343898372,1733011832461,-923.68803225,7.99e-05,2]
[343898374,1733011832472,-4683.71625309,7.99e-05,2]
[343898376,1733011832483,-3304.97387609,7.99e-05,2]
[343898377,1733011832494,-6039.65609257,7.99e-05,2]
[343898378,1733011832506,-983.93,7.99e-05,2]
[343898379,1733011832517,-1660.34082964,7.99e-05,2]
[343898382,1733011832529,-6348.29684181,7.99e-05,2]
[343898384,1733011832552,-12574.20259887,7.99e-05,2]
[343898385,1733011832563,-8737.48185709,7.99e-05,2]
[343898386,1733011832576,-11453.3713651,7.99e-05,2]
[343898387,1733011832604,-154310.9954747,7.99e-05,2]
[343898388,1733011832615,-6593.59334998,7.99e-05,2]
[343898389,1733011832627,-630.80423723,7.99e-05,2]
[343898390,1733011832655,-618.11487795,7.99e-05,2]
[343898391,1733011832667,-417.12196834,7.99e-05,2]
[343898395,1733011838052,-5206.50886224,7.99e-05,2]
[343898396,1733011838064,-1952.5,7.99e-05,2]
[343898437,1733011840412,-3863.56,7.99e-05,2]
[343898439,1733011840423,-445.8159884,7.99e-05,2]
[343898444,1733011840462,-8980.14583828,7.99e-05,2]
[343898446,1733011840473,-1100.934282,7.99e-05,2]
[343898448,1733011840485,-5083.0,7.99e-05,2]
[343898451,1733011840496,-477.05219997,7.99e-05,2]
[343898453,1733011840507,-300.0,7.99e-05,2]
[343898458,1733011840546,-19155.74720861,7.99e-05,2]
[343898727,1733011843297,-6959.98258749,7.99e-05,2]
[343898729,1733011843307,-1934.68554329,7.99e-05,2]
[343898731,1733011843318,-3209.95062937,7.99e-05,2]
[343898735,1733011843351,-1334.188335,7.99e-05,2]
[343898738,1733011843362,-697.999995,7.99e-05,2]
[343898740,1733011843375,-2754.96,7.99e-05,2]
[343898742,1733011843386,-2824.294932,7.99e-05,2]
[343898746,1733011843417,-205365.47354667,7.99e-05,2]
[343898888,1733011846159,-2068.99989915,7.99e-05,2]
[343898889,1733011846255,-1225.75000025,7.99e-05,2]
[343898891,1733011904833,-151.0,7.61e-05,2]
[343898892,1733012013088,500.0,7.549e-05,2]
[343898893,1733012610421,500.0,7.489e-05,2]
[343898894,1733012800542,2000.0,0.00019,30]
[343898895,1733012885139,15536.3785024,0.000189,30]
[343898897,1733012956976,2000.0,0.00019,30]
[343898905,1733013032297,-300.0,7.868e-05,2]
[343898906,1733013032307,-1423.76742789,7.869e-05,2]
[343898928,1733013038242,-18587.13499971,7.869e-05,2]
[343898929,1733013038402,-3889.0975724,7.869e-05,2]
[343898930,1733013038412,-150.0,7.989e-05,2]
[343898931,1733013038423,-1432.35932813,7.99e-05,2]
[343898932,1733013038434,-2776.08358304,7.99e-05,2]
[343898933,1733013038446,-11190.36083534,7.99e-05,2]
[343899068,1733013040106,-351.985249,7.99e-05,2]
[343899076,1733013040166,-3135.92377977,7.99e-05,2]
[343899099,1733013040385,-3379.48942111,7.99e-05,2]
[343899370,1733013043302,-5267.57988772,7.99e-05,2]
[343899373,1733013043315,-3883.93590005,7.99e-05,2]
[343899375,1733013043326,-10529.62140004,7.99e-05,2]
[343899377,1733013043337,-124008.53143155,7.99e-05,2]
[343899380,1733013043356,-3726.3,7.99e-05,2]
[343899382,1733013043367,-282.7100002,7.99e-05,2]
[343899385,1733013043379,-2548.4357028,7.99e-05,2]
[343899387,1733013043390,-775.43069288,7.99e-05,2]
[343899661,1733013046083,-150.0,7.916e-05,2]
[343899664,1733013046095,-2412.55700875,7.99e-05,2]
[343899666,1733013046106,-48302.80000087,7.99e-05,2]
[343899670,1733013046138,-424.23,7.99e-05,2]
[343899695,1733013046355,-476.5391109,7.99e-05,2]
[343899762,1733013700552,249.04,7.48e-05,2]
[343899763,1733013810840,500.0,7.42e-05,2]
[343899764,1733013906200,1000.0,0.00018999,30]
[343899765,1733013953229,1000.0,0.00018999,30]
[343899766,1733013964022,1000.0,0.00018999,30]
[343899767,1733013975260,1000.0,0.00018999,30]
[343899768,1733013983637,1000.0,0.00018999,30]
[343899769,1733013997562,1000.0,0.00018999,30]
[343899770,1733014013718,1000.0,0.00018999,30]
[343899771,1733014031894,1000.0,0.00018999,30]
[343899772,1733014061313,1000.0,0.00018999,30]
[343899773,1733014086427,1000.0,0.00018999,30]
[343899785,1733014232309,-857.250015,7.823e-05,2]
[343900089,1733014238690,-3808.309985,7.823e-05,2]
[343900090,1733014238700,-716.62,7.848e-05,2]
[343900091,1733014238710,-670.848986,7.863e-05,2]
[343900092,1733014238719,-150.0,7.989e-05,2]
[343900093,1733014238729,-1616.10368335,7.99e-05,2]
[343900094,1733014238742,-2188.30176928,7.99e-05,2]
[343900095,1733014238756,-7997.76299455,7.99e-05,2]
[343900096,1733014238772,-1486.2,7.99e-05,2]
[343900097,1733014238782,-1900.0,7.99e-05,2]
[343900104,1733014243225,-2161.57807829,7.99e-05,2]
[343900115,1733014243392,-5745.0,7.99e-05,2]
[343900116,1733014243449,-581.85893202,7.99e-05,2]
[343900117,1733014243460,-595.98139289,7.99e-05,2]
[343900118,1733014243471,-2836.15835676,7.99e-05,2]
[343900119,1733014243505,-1969.08669135,7.99e-05,2]
[343900120,1733014243517,-5406.16931306,7.99e-05,2]
[343900121,1733014243529,-3019.57607691,7.99e-05,2]
[343900122,1733014243540,-382.98,7.99e-05,2]
[343900123,1733014243563,-1137.19775824,7.99e-05,2]
[343900124,1733014243575,-1156.7300001,7.99e-05,2]
[343900125,1733014243587,-3758.4232621,7.99e-05,2]
[343900126,1733014243597,-13250.9129,7.99e-05,2]
[343900127,1733014243618,-7007.8661897,7.99e-05,2]
[343900128,1733014243674,-9481.15076403,7.99e-05,2]
[343900129,1733014243728,-1255.9392008,7.99e-05,2]
[343900390,1733014246271,-13305.57638478,7.99e-05,2]
[343900402,1733014246381,-588.94,7.99e-05,2]
[343900404,1733014246392,-31163.75066698,7.99e-05,2]
[343900406,1733014246404,-3929.113636,7.99e-05,2]
[343900408,1733014246415,-1164.43147196,7.99e-05,2]
[343900412,1733014246437,-3783.7998667,7.99e-05,2]
[343900414,1733014246448,-4221.96408,7.99e-05,2]
[343900416,1733014246460,-1583.901916,7.99e-05,2]
[343900418,1733014246471,-1224.73989343,7.99e-05,2]
[343900422,1733014246495,-8384.39072777,7.99e-05,2]
[343900424,1733014246506,-3128.97712188,7.99e-05,2]
[343900474,1733014610824,6446.07,7.461e-05,2]
[343900475,1733014764753,1112.21,7.457e-05,2]
[343900476,1733014877811,391.03,7.424e-05,2]
[343900477,1733014905430,364.0,7.424e-05,2]
[343900478,1733015009150,500.0,7.365e-05,2]
[343900479,1733015078473,150.0,7.459e-05,2]
[343900480,1733015113762,1000.0,0.00011,10]
[343900481,1733015177602,1000.0,0.00018,30]
[343900482,1733015290734,163.09,7.339e-05,2]
[343900483,1733015298794,-1307.7,7.801e-05,2]
[343900484,1733015298817,-1056.37006536,7.83e-05,2]
[343900485,1733015298841,-1000.0,7.9e-05,2]
[343900486,1733015298865,-500.0,7.973e-05,2]
[343900487,1733015298892,-278.51000157,7.989e-05,2]
[343900488,1733015298916,-150.0,7.989e-05,2]
[343900489,1733015298939,-159.04054974,7.989e-05,2]
[343900490,1733015298962,-19541.29672849,7.99e-05,2]
[343900491,1733015298985,-7400.0,7.99e-05,2]
[343900492,1733015299009,-1391.866,7.99e-05,2]
[343900493,1733015299032,-192.60514843,7.99e-05,2]
[343900494,1733015299059,-1000.0,7.99e-05,2]
[343900495,1733015299082,-577.52518933,7.993e-05,2]
[343900496,1733015299105,-274.8993415,7.993e-05,2]
[343900497,1733015299129,-3005.7750326,7.993e-05,2]
[343900498,1733015299155,-646.2864761,7.993e-05,2]
[343900499,1733015299178,-274.8993415,7.995e-05,2]
[343900500,1733015299201,-274.8993415,7.995e-05,2]
[343900501,1733015299225,-274.8993415,7.995e-05,2]
[343900502,1733015299249,-2655.0799884,7.995e-05,2]
[343900503,1733015299273,-2304.3849442,7.995e-05,2]
[343900504,1733015299298,-1953.6899001,7.995e-05,2]
[343900505,1733015299320,-570.8818095,7.995e-05,2]
[343900506,1733015299344,-495.4771429,7.995e-05,2]
[343900507,1733015299367,-420.0724762,7.995e-05,2]
[343900508,1733015299394,-150.0,7.998e-05,2]
[343900509,1733015299418,-150.0,7.998e-05,2]
[343900510,1733015299443,-150.0,7.998e-05,2]
[343900511,1733015299469,-150.0,7.998e-05,2]
[343900512,1733015299497,-150.0,7.998e-05,2]
[343900513,1733015299519,-150.0,7.998e-05,2]
[343900514,1733015299546,-150.0,7.998e-05,2]
[343900515,1733015299571,-150.0,7.998e-05,2]
[343900516,1733015299594,-150.0,7.998e-05,2]
[343900517,1733015299616,-150.0,7.998e-05,2]
[343900518,1733015299643,-150.0,7.998e-05,2]
[343900519,1733015299667,-150.0,7.998e-05,2]
[343900520,1733015299691,-150.0,7.998e-05,2]
[343900521,1733015299716,-150.0,7.998e-05,2]
[343900522,1733015299739,-150.0,7.998e-05,2]
[343900523,1733015299763,-150.0,7.998e-05,2]
[343900524,1733015299786,-150.0,7.998e-05,2]
[343900525,1733015299808,-630.0,7.998e-05,2]
[343900526,1733015299841,-3758.0,7.998e-05,2]
[343900527,1733015299869,-816.0,7.998e-05,2]
[343900528,1733015299896,-1264.0,7.998e-05,2]
[343900529,1733015299919,-534.0,7.998e-05,2]
[343900530,1733015299943,-1000.0,7.999e-05,2]
[343900531,1733015299967,-728.7,7.999e-05,2]
[343900532,1733015299990,-1000.0,8e-05,3]
[343900533,1733015300017,-1010013.14118108,8e-05,2]
[343900542,1733015431540,-281.249988,7.73e-05,2]
[343900543,1733015431553,-1001.3784,7.73e-05,2]
[343900572,1733015432338,-1193.839712,7.73e-05,2]
[343900574,1733015432360,-573.29,7.862e-05,2]
[343900576,1733015432378,-698.18704885,7.89e-05,2]
[343900581,1733015432415,-304.5632688,7.89e-05,2]
[343900582,1733015432432,-6969.39948235,7.89e-05,2]
[343900583,1733015432443,-500.0,7.9e-05,2]
[343900584,1733015432453,-274.92158064,7.973e-05,2]
[343900585,1733015432462,-432.32010728,7.973e-05,2]
[343900586,1733015432477,-67.67989272,7.973e-05,2]
[343900587,1733015432487,-500.0,7.973e-05,2]
[343900588,1733015432496,-1791.8922066,7.993e-05,2]
[343900589,1733015432505,-1584.4126315,7.995e-05,2]
[343900590,1733015432516,-1376.9330564,7.995e-05,2]
[343900592,1733015432527,-1169.4534813,7.995e-05,2]
[343900593,1733015432537,-150.0,7.998e-05,2]
[343900595,1733015432547,-150.0,7.999e-05,2]
[343900598,1733015432559,-67.96782695,8e-05,2]
[343900867,1733015437834,-758461.84595662,8e-05,2]
[343900993,1733015439622,-30459.81635536,8e-05,2]
[343900999,1733015442838,-4357.03249142,8e-05,2]
[343901000,1733015442850,-6629.41878197,8e-05,2]
[343901001,1733015442862,-7681.90817476,8e-05,2]
[343901002,1733015442875,-3616.8509574,8e-05,2]
[343901003,1733015442976,-2952.83726142,8e-05,2]
[343901004,1733015442987,-1776.87749345,8e-05,2]
[343901005,1733015443004,-1279.55141217,8e-05,2]
[343901006,1733015443053,-3718.28334674,8e-05,2]
[343901007,1733015443064,-2103.556,8e-05,2]
[343901008,1733015443076,-987.25247623,8e-05,2]
[343901009,1733015443087,-3122.069035,8e-05,2]
[343901248,1733015445544,-414.85373736,8e-05,2]
[343901256,1733015445620,-3736.69993953,8e-05,2]
[343901259,1733015445632,-2119.99976,8e-05,2]
[343901293,1733015445942,-1605.0000015,8e-05,2]
[343901297,1733015445979,-477.95921646,8e-05,2]
[343901301,1733015445991,-89106.64037995,8e-05,2]
[343901304,1733015446017,-925.28493096,8e-05,2]
[343901306,1733015446031,-1872.64999613,8e-05,2]
[343901877,1733015711010,245.14,7.357e-05,2]
[343901879,1733015982031,161.04,7.317e-05,2]
[343901880,1733016014939,158.98,7.317e-05,2]
[343901881,1733016025075,5196.58,7.38e-05,2]
[343901882,1733016042406,150.0,7.61e-05,2]
[343901883,1733016064695,18603.86,7.352e-05,2]
[343901884,1733016291466,200.0,7.386e-05,2]
[343901978,1733016632803,-150.0,7.799e-05,2]
[343901980,1733016632813,-1000.0,7.8e-05,2]
[343901982,1733016632822,-55605.51322596,7.8e-05,2]
[343901984,1733016632833,-2844.66697615,7.8e-05,2]
[343902207,1733016637835,-358.5467,7.8e-05,2]
[343902222,1733016637970,-142083.96982689,7.8e-05,2]
[343902223,1733016637979,-1000.0,7.9e-05,2]
[343902225,1733016637989,-500.0,7.936e-05,2]
[343902227,1733016637999,-500.0,7.973e-05,2]
[343902229,1733016638010,-159.86889538,7.973e-05,2]
[343902230,1733016638019,-503.88798897,7.973e-05,2]
[343902232,1733016638029,-290.3692101,7.993e-05,2]
[343902234,1733016638039,-486.4470349,7.993e-05,2]
[343902236,1733016638049,-549.7986833,7.993e-05,2]
[343902237,1733016638058,-613.9309525,7.993e-05,2]
[343902239,1733016638068,-288.6527419,7.995e-05,2]
[343902240,1733016638077,-286.9362737,7.995e-05,2]
[343902242,1733016638086,-285.2198054,7.995e-05,2]
[343902244,1733016638101,-482.2211987,7.995e-05,2]
[343902245,1733016638110,-477.9953626,7.995e-05,2]
[343902247,1733016638121,-150.0,7.998e-05,2]
[343902249,1733016638130,-150.0,7.998e-05,2]
[343902250,1733016638139,-150.0,7.998e-05,2]
[343902251,1733016638149,-150.0,7.998e-05,2]
[343902252,1733016638158,-150.0,7.998e-05,2]
[343902253,1733016638168,-150.0,7.998e-05,2]
[343902254,1733016638178,-150.0,7.998e-05,2]
[343902255,1733016638188,-150.0,7.998e-05,2]
[343902256,1733016638198,-150.0,7.998e-05,2]
[343902257,1733016638208,-150.0,7.998e-05,2]
[343902258,1733016638218,-150.0,7.998e-05,2]
[343902259,1733016638228,-150.0,7.998e-05,2]
[343902260,1733016638239,-150.0,7.998e-05,2]
[343902261,1733016638249,-150.0,7.998e-05,2]
[343902262,1733016638259,-150.0,7.998e-05,2]
[343902263,1733016638268,-150.0,7.998e-05,2]
[343902265,1733016638278,-3758.0,7.998e-05,2]
[343902266,1733016638287,-415.345,7.998e-05,2]
[343902268,1733016638297,-816.0,7.998e-05,2]
[343902270,1733016638306,-534.0,7.998e-05,2]
[343902272,1733016638315,-151.15,7.998e-05,2]
[343902275,1733016638325,-633.0,7.998e-05,2]
[343902276,1733016638334,-1103.029,7.998e-05,2]
[343902278,1733016638343,-598.06483987,7.998e-05,2]
[343902284,1733016638393,-31.93516013,7.998e-05,2]
[343902286,1733016638402,-698.34,7.999e-05,2]
[343902288,1733016638412,-4916.49281053,7.999e-05,2]
[343902290,1733016638423,-4644.81741237,7.999e-05,2]
[343902292,1733016638434,-9137.42116054,7.999e-05,2]
[343902294,1733016638445,-2028.01491646,7.999e-05,2]
[343902421,1733016639772,-3298.2537001,7.999e-05,2]
[343902424,1733016639781,-40437.0447682,7.999e-05,2]
[343902426,1733016639791,-508.40849943,7.999e-05,2]
[343902428,1733016639800,-5890.13015467,8e-05,2]
[343902440,1733016639908,-4646.41504657,8e-05,2]
[343902442,1733016639921,-1660.66041026,8e-05,2]
[343902444,1733016639933,-646.826189,8e-05,2]
[343902518,1733016640608,-514.87,8e-05,2]
[343902786,1733016643238,-7336.18371553,8e-05,2]
[343902788,1733016643250,-4273.36453847,8e-05,2]
[343902791,1733016643266,-13380.01035813,8e-05,2]
[343902793,1733016643278,-4118.57381879,8e-05,2]
[343902795,1733016643293,-5843.49598607,8e-05,2]
[343902798,1733016643312,-4397.78571899,8e-05,2]
[343902801,1733016643323,-827.94730854,8e-05,2]
[343903045,1733016645756,-743.3523116,8e-05,2]
[343903063,1733016645894,-467682.50317669,8e-05,2]
[343903077,1733016646023,-43146.61794011,8e-05,2]
[343903092,1733016646150,-5157.8190213,8e-05,2]
[343903347,1733016795505,163.51,0.00016658,30]
[343903349,1733017254475,5000.0,0.00019,30]
[343903351,1733017264117,5000.0,0.00019,30]
[343903352,1733017269553,5000.0,0.00019,30]
[343903353,1733017273559,5000.0,0.00019,30]
[343903354,1733017276211,5000.0,0.00019,30]
[343903355,1733017282876,5000.0,0.00019,30]
[343903356,1733017286413,-350.0,0.0002,120]
[343903357,1733017365906,458.63,7.315e-05,2]
[343903358,1733017394000,168.38,7.29e-05,2]
[343903359,1733017763094,-150.0,7.641e-05,2]
[343903360,1733017763116,-300.0,7.641e-05,2]
[343903361,1733017763136,-931.35349551,7.642e-05,2]
[343903363,1733017832244,-300.0,7.641e-05,2]
[343903364,1733017832255,-7426.48,7.642e-05,2]
[343903365,1733017832267,-477.00522839,7.642e-05,2]
[343903366,1733017832279,-1176.45807288,7.642e-05,2]
[343903367,1733017832292,-917.61691343,7.642e-05,2]
[343903368,1733017832679,-20363.3367578,7.642e-05,2]
[343903369,1733017832691,-3941.2451595,7.642e-05,2]
[343903423,1733017838460,-22331.52436495,7.642e-05,2]
[343903425,1733017838475,-13783.63025479,7.642e-05,2]
[343903427,1733017838488,-19372.05999967,7.642e-05,2]
[343903451,1733017839919,-345.55065422,7.642e-05,2]
[343903453,1733017839930,-9428.82050071,7.642e-05,2]
[343903454,1733017839942,-12071.73390568,7.642e-05,2]
[343903455,1733017839953,-1319.286814,7.642e-05,2]
[343903462,1733017843574,-10514.77200001,7.642e-05,2]
[343903463,1733017843587,-1142.54300588,7.642e-05,2]
[343903464,1733017843861,-56082.02192489,7.642e-05,2]
[343903485,1733017845331,395.9009,7.542e-05,2]
[343903490,1733017846105,-2907.55,7.642e-05,2]
[343903491,1733017846118,-454.3678012,7.642e-05,2]
[343903492,1733017846131,-791.5637217,7.642e-05,2]
[343903493,1733017905303,1514.75,7.307e-05,2]
[343903494,1733017985570,217.34,7.307e-05,2]
[343903495,1733018146468,23900.0,7.323e-05,2]
[343903496,1733018510465,1420.62,7.381e-05,2]
[343903497,1733018624332,-239.51776708,9.188e-05,5]
[343903498,1733018624354,-150.0,9.2e-05,5]
[343903499,1733018624376,-150.0,9.2e-05,5]
[343903500,1733018624402,-1000.0,9.9e-05,3]
[343903501,1733018624424,-1000.0,9.9e-05,3]
[343903502,1733018624446,-1000.0,9.9e-05,3]
[343903503,1733018624468,-1000.0,9.9e-05,3]
[343903504,1733018624497,-5885.96063673,0.0001,3]
[343903505,1733018662614,-2000.0,0.00012345,15]
[343903506,1733018662641,-3042.02514839,0.00013,15]
[343903507,1733018693058,-419.97779284,7.641e-05,2]
[343903508,1733018693082,-269.45915745,7.642e-05,2]
[343903509,1733018693105,-300.0,7.642e-05,2]
[343903510,1733018693129,-10385.0,7.643e-05,2]
[343903511,1733018693152,-185.7649963,7.643e-05,2]
[343903512,1733018693176,-1302.0,7.7e-05,2]
[343903513,1733018693198,-421.68197495,7.721e-05,2]
[343903514,1733018693219,-500.0,7.781e-05,2]
[343903515,1733018693243,-191.21,7.823e-05,2]
[343903516,1733018693268,-150.0,7.955e-05,2]
[343903517,1733018693290,-58673.55316236,7.956e-05,2]
[343903518,1733018693311,-150.0,7.96e-05,2]
[343903519,1733018693333,-500.0,7.973e-05,2]
[343903520,1733018693357,-600.10360103,7.973e-05,2]
[343903521,1733018693380,-502.36746892,7.973e-05,2]
[343903522,1733018693401,-371.06,7.98e-05,2]
[343903523,1733018693422,-151.01,7.98e-05,2]
[343903524,1733018693444,-151.96,7.98e-05,2]
[343903525,1733018693465,-150.53,7.98e-05,2]
[343903526,1733018693485,-150.0,7.98e-05,2]
[343903527,1733018693507,-150.0,7.98e-05,2]
[343903528,1733018693528,-150.0,7.98e-05,2]
[343903529,1733018693551,-286.31,7.98e-05,2]
[343903530,1733018693575,-152.41,7.98e-05,2]
[343903531,1733018693596,-150.0,7.98e-05,2]
[343903532,1733018693618,-150.0,7.98e-05,2]
[343903533,1733018693640,-300.0,7.98e-05,2]
[343903534,1733018693663,-727.62,7.98e-05,2]
[343903535,1733018693685,-869.58,7.98e-05,2]
[343903536,1733018693708,-434.79,7.98e-05,2]
[343903537,1733018693730,-150.0,7.98e-05,2]
[343903538,1733018693752,-205.27,7.98e-05,2]
[343903539,1733018693774,-150.0,7.98e-05,2]
[343903540,1733018693796,-1894.54,7.98e-05,2]
[343903541,1733018693819,-150.0,7.998e-05,2]
[343903542,1733018693841,-150.0,7.998e-05,2]
[343903543,1733018693863,-150.0,7.998e-05,2]
[343903544,1733018693885,-150.0,7.998e-05,2]
[343903545,1733018693907,-150.0,7.998e-05,2]
[343903546,1733018693929,-150.0,7.998e-05,2]
[343903547,1733018693950,-150.0,7.998e-05,2]
[343903548,1733018693971,-150.0,7.998e-05,2]
[343903549,1733018693993,-150.0,7.998e-05,2]
[343903550,1733018694015,-150.0,7.998e-05,2]
[343903551,1733018694038,-150.0,7.998e-05,2]
[343903552,1733018694060,-150.0,7.998e-05,2]
[343903553,1733018694082,-150.0,7.998e-05,2]
[343903554,1733018694104,-150.0,7.998e-05,2]
[343903555,1733018694126,-150.0,7.998e-05,2]
[343903556,1733018694148,-150.0,7.998e-05,2]
[343903557,1733018694170,-150.0,7.998e-05,2]
[343903558,1733018694192,-150.0,7.998e-05,2]
[343903559,1733018694214,-5990.911,7.998e-05,2]
[343903560,1733018694235,-334.481,7.998e-05,2]
[343903561,1733018694256,-643.153,7.998e-05,2]
[343903562,1733018694277,-153.569,7.998e-05,2]
[343903563,1733018694299,-151.322,7.998e-05,2]
[343903564,1733018694320,-2029.206,7.998e-05,2]
[343903565,1733018694342,-630.0,7.998e-05,2]
[343903566,1733018694368,-334.149,7.998e-05,2]
[343903567,1733018694390,-1798.876,7.998e-05,2]
[343903568,1733018694412,-1703.201,7.998e-05,2]
[343903569,1733018694434,-816.0,7.998e-05,2]
[343903570,1733018694457,-977.0,7.998e-05,2]
[343903571,1733018694744,-3526.0,7.998e-05,2]
[343903572,1733018694776,-534.0,7.998e-05,2]
[343903573,1733018694799,-22386.591,7.998e-05,2]
[343903574,1733018694823,-157.99781263,7.999e-05,2]
[343903575,1733018694844,-691.61,7.999e-05,2]
[343903576,1733018694867,-1440.086,7.999e-05,2]
[343903577,1733018694889,-173.38665747,7.999e-05,2]
[343903578,1733018694915,-276064.75882385,8e-05,2]
[343903593,1733019032426,-587.60126363,7.92e-05,2]
[343903594,1733019032439,-700.0910685,7.92e-05,2]
[343903595,1733019032622,-2314.399995,7.92e-05,2]
[343903600,1733019038340,-1133.2914665,7.92e-05,2]
[343903602,1733019038353,-3278.52162705,7.92e-05,2]
[343903745,1733019040560,-710.69999997,7.92e-05,2]
[343903747,1733019040572,-1039.18457935,7.92e-05,2]
[343903749,1733019040582,-18551.06915323,7.973e-05,2]
[343903751,1733019040596,-581.49971982,7.973e-05,2]
[343903754,1733019040608,-1143.34,7.973e-05,2]
[343903783,1733019040921,-2137.20351473,7.973e-05,2]
[343904031,1733019043645,-3565.0,7.973e-05,2]
[343904033,1733019043658,-1941.88761222,7.973e-05,2]
[343904035,1733019043671,-502.90916498,7.973e-05,2]
[343904037,1733019043682,-388.7934308,7.973e-05,2]
[343904038,1733019043692,-150.0,7.998e-05,2]
[343904040,1733019043702,-662.79,7.999e-05,2]
[343904042,1733019043713,-150.0,7.999e-05,2]
[343904044,1733019043723,-68962.69335681,8e-05,2]
[343904058,1733019043985,-715.14,8e-05,2]
[343904063,1733019044031,-28.48812127,8e-05,2]
[343904316,1733019046676,-830746.74168002,8e-05,2]
[343905110,1733019309720,1000.0,0.0002,120]
[343905111,1733019335742,1068.33570325,0.0002,120]
[343905115,1733020075574,981.72,7.578e-05,2]
[343905116,1733020114725,346.25,0.00019,30]
[343905141,1733020232540,-250.0,7.613e-05,2]
[343905142,1733020232550,-500.0,7.808e-05,2]
[343905143,1733020232561,-621.19,7.891e-05,2]
[343905144,1733020232571,-300.0,7.897e-05,2]
[343905145,1733020232580,-175.3256,7.9e-05,2]
[343905146,1733020232590,-570.3557,7.9e-05,2]
[343905147,1733020232600,-2500.0,7.9e-05,2]
[343905148,1733020232609,-2500.0,7.9e-05,2]
[343905149,1733020232619,-506.57150676,7.973e-05,2]
[343905150,1733020232629,-150.0,7.997e-05,2]
[343905151,1733020232639,-150.0,7.998e-05,2]
[343905152,1733020232649,-150.0,7.998e-05,2]
[343905153,1733020232660,-150.0,7.998e-05,2]
[343905154,1733020232670,-150.0,7.998e-05,2]
[343905155,1733020232679,-150.0,7.998e-05,2]
[343905156,1733020232689,-150.0,7.998e-05,2]
[343905157,1733020232699,-150.0,7.998e-05,2]
[343905158,1733020232708,-150.0,7.998e-05,2]
[343905159,1733020232720,-150.0,7.998e-05,2]
[343905160,1733020232730,-150.0,7.998e-05,2]
[343905161,1733020232740,-150.0,7.998e-05,2]
[343905162,1733020232750,-150.0,7.998e-05,2]
[343905163,1733020232760,-150.0,7.998e-05,2]
[343905164,1733020232770,-150.0,7.998e-05,2]
[343905165,1733020232781,-150.0,7.998e-05,2]
[343905166,1733020232791,-150.0,7.998e-05,2]